Workbook

Sheet Gestion
A1: =+Gouvernement!A1 -> CALCUL DE L'AVANTAGE - AUTOMOBILE | IV1: coco
A2: =+"Année d'imposition "&Année -> Année d'imposition 2020
A3: Module de gestion | D3: =+Gouvernement!B1 -> Version 2020-01 (décembre 2020)
A5: Codifications gouvernementales
A7: Afficher le formulaire de saisie

Sheet Lettre Base (hidden)
B8: =+"Le 31 décembre "&Année -> Le 31 décembre 2020
B14: =+"Nom de l’entreprise : "&C14 -> Nom de l’entreprise : Test | C14: Test
B24: =+"Je, "&C24&" , désire me prévaloir du choix permis selon les règles sur les avantages imposables me permettant l’utilisation du 50 % des droits d’usage comme frais de fonctionnement pour l'année "&Année&"." -> Je, Test location , désire me prévaloir du choix permis selon les règles sur les avantages imposables me permettant l’utilisation du 50 % des droits d’usage comme frais de fonctionnement pour l'année 2020. | C24: Test location
B30: _________________________________
B31: Employé
B36: _________________________________
B37: Employeur

Sheet Calcul (hidden)
A1: Test | IV1: lc8822
A2: Test location
A3: Nombre total de kilomètres parcourus | T3: =+T114 -> 24000
A4: Nombre total de kilomètres parcourus à des fin personnelles | T4: =+T115 -> 10500
A5: Nombre total de kilomètres parcourus à des fin d'affaires | T5: 13500
A6: Pourcentage d'utilisation pour fin d'affaires | T6: 0.56
A7: Nombre de jours où l'automobile est utilisée par l'employé (jours disponible) - maximum 360 | T7: 360
A8: Coût de l'automobile incluant T.P.S. et T.V.Q. | T8: 0
A9: Nombre de mois d'utilisation de L'automobile | T9: 12
A10: Frais de location totaux incluant la T.P.S. et la T.V.Q. (pour toute la période pour laquelle l'automobile est détenue) excluant les frais d'assurances | T10: =+T121+IF(T126>0,ROUND(T125/T126*T9,0),0) -> 15000
A11: Remboursement de l'employé - Droit d'usage | T11: 0
A12: Remboursement de l'employé - Frais de fonctionnement | T12: 0
A13: Êtes-vous une grande entreprise ? | T13: Non
A15: CALCUL DE L'AVANTAGE IMPOSABLE - AUTOMOBILE
A16: =+Année -> 2020
A18: PREMIÈRE ÉTAPE - DROIT D'USAGE
B21: Calcul de la valeur de droit d'usage
B23: A | C23: X | D23: [ | E23: 0.02 | F23: X | G23: ( | H23: C | I23: X | J23: D | K23: ) | L23: + | M23: ( | N23: 2/3 | O23: X | P23: E | Q23: ) | R23: ] | S23: =
B24: B
B26: =IF(T3="",0,IF(T6<0.5,+P45,P35)) -> 10500 | C26: X | D26: [ | E26: 0.02 | F26: X | G26: ( | H26: =IF(T3<>0,+T8,0) -> 0 | I26: X | J26: =IF(T3="","",+T9) -> 12 | K26: ) | L26: + | M26: ( | N26: 2/3 | O26: X | P26: =IF(T3<>0,+T10,0) -> 15000 | Q26: ) | R26: ] | S26: = | T26: =IF(T9=0,0,IF(T3=0,0,ROUND((J28+P28)*B26/B27,2))) -> 5248.95
B27: =IF(T3="","",IF(T6<0.5,+P45,P37)) -> 20004
J28: =ROUND(J26*H26*Gouvernement!B3,2) -> 0 | P28: =ROUND(P26*Gouvernement!B4/Gouvernement!C4,2) -> 10000
B32: Situation 1 : | E32: Si l'employé utilise l'automobile pour fins d'affaires à plus de 50 %
E34: A = | F34: Nombre total de KM personnels jusqu'au maximum
F35: =+"de "&Gouvernement!B11&" KM" -> de 20004 KM | N35: A | O35: = | P35: =IF(T3="","",IF(T6<0.5,0,IF(T4>Gouvernement!B11,Gouvernement!B11,+T4))) -> 10500
E37: B = | F37: 1 667 X jours disponibles | N37: B | O37: = | P37: =IF(T3="","",IF(T6<0.5,0,ROUND(Gouvernement!B5*T7/Gouvernement!B12,0))) -> 20004
G38: 30
E40: Ex: | F40: Pour 12 mois d'utilisation, B = 20 004
B43: Situation 2 : | E43: Si l'employé utilise l'automobile pour fins d'affaires à moins de 50 %
E45: A = | F45: B | G45: 1 667 X jours disponibles | N45: A = B | O45: = | P45: =IF(T3="","",IF(T6>0.5,0,ROUND(Gouvernement!B5*T7/Gouvernement!B12,0))) -> 0
G46: 30
E48: Ex: | F48: Pour 12 mois d'utilisation, A = B = 20 004
A50: DEUXIÈME ÉTAPE - FRAIS DE FONCTIONNEMENT
G52: Méthode générale
C54: =+"Nombre de kilomètres personnels X "&TauxKm&" $ =" -> Nombre de kilomètres personnels X 0,28 $ = | N54: =IF(T3="","",ROUND(T4*Gouvernement!B6,2)) -> 2940
G59: Méthode simplifiée | H59: (lorsque l'automobile sert à plus de 50% pour fin d'affaires)
C61: Moindre de :
C63: - Montant obtenue avec la méthode générale | N63: =IF(T3="","",IF(T6>0.5,N54,0)) -> 2940
N64: =IF(N65<N63,+N65,N63) -> 2624.475
C65: - 50 % de la valeur du droit d'usage | N65: =IF(T3="","",IF(T6>0.5,T26*0.5,0)) -> 2624.475 | Q65: =IF(ROUND(N65,2)=ROUND(T65,2),1,0) -> 1 | T65: =IF(T3="","",IF(T6<=0.5,+N54,+N64)) -> 2624.475
B69: Avantage total
C71: Valeur du droit d'usage | T71: =+T26 -> 5248.95
C73: Remboursement de l'employé - Droit d'usage | T73: =IF(T3<>0,IF(T11>T71,-T71,-T11),0) -> 0
C75: Valeur des frais de fonctionnement | T75: =+T65 -> 2624.475
C77: Remboursement de l'employé - Frais de fonctionnement | T77: =IF(T3<>0,IF(T12>T75,-T75,-T12),0) -> 0
C79: Total | T79: =IF(T3=0,0,+T71+T73+T75+T77) -> 7873.425
A82: CALCUL DE LA REMISE DES TAXES PAR L'EMPLOYEUR
B84: T.P.S.
C86: Total de :
D88: ="T.P.S reliée au droit d'usage = valeur X "&Gouvernement!B7&" / "&Gouvernement!C7 -> T.P.S reliée au droit d'usage = valeur X 4 / 104 | O88: =+ROUND(T71,2)&" X "&Gouvernement!B7&" / "&Gouvernement!C7 -> 5248,95 X 4 / 104 | T88: =IF(T3="","",ROUND(T71*Gouvernement!B7/Gouvernement!C7,2)) -> 201.88
D90: ="T.P.S reliée aux frais de fonctionnement = valeur X "&Gouvernement!D9&"%" -> T.P.S reliée aux frais de fonctionnement = valeur X 3% | O90: =+ROUND(T75,2)&" X "&Gouvernement!D9&" %" -> 2624,48 X 3 % | T90: =IF(T3="","",ROUND(T75*Gouvernement!B9,2)) -> 78.73
D92: Total de la T.P.S. à remettre | T92: =IF(T3="","",+T88+T90) -> 280.61
B96: T.V.Q.
C98: Total de :
D100: =+"T.V.Q reliée au droit d'usage = valeur X "&Gouvernement!B8&" / "&Gouvernement!C8 -> T.V.Q reliée au droit d'usage = valeur X 9,975 / 109,975 | N100: =IF(T13="oui",+ROUND(T71,2)&" X "&Gouvernement!B8&" / "&Gouvernement!C8&" X "&Taux_TVQ_GE*100&" %",+ROUND(T71,2)&" X "&Gouvernement!B8&" / "&Gouvernement!C8) -> 5248,95 X 9,975 / 109,975 | T100: =IF(T3="","",IF(T13="oui",ROUND(T71*Gouvernement!B8/Gouvernement!C8*Taux_TVQ_GE,2),ROUND(T71*Gouvernement!B8/Gouvernement!C8,2))) -> 476.09
D102: ="T.V.Q reliée aux frais de fonctionnement = valeur X "&Gouvernement!D10&"%" -> T.V.Q reliée aux frais de fonctionnement = valeur X 6% | N102: =IF(T13="oui",+ROUND(T75,2)&" X "&Gouvernement!D10&" %"&" X "&Taux_TVQ_GE*100&" %",+ROUND(T75,2)&" X "&Gouvernement!D10&" %") -> 2624,48 X 6 % | T102: =IF(T3="","",IF(T13="oui",ROUND(T75*Gouvernement!B10*Taux_TVQ_GE,2),ROUND(T75*Gouvernement!B10,2))) -> 157.47
D104: Total de la T.V.Q. à remettre | T104: =IF(T3="","",+T100+T102) -> 633.56
C106: Note : | E106: Ces taxes doivent être remises pour la période de déclaration comprenant le dernier jour
E107: de février suivant l'année d'imposition.
C109: Aucune TVQ n'est à verser si à un moment de l'année civile, la corporation est considérée
C110: comme une grande entreprise
A112: Données
A114: Nombre total de kilomètres parcourus | T114: 24000
A115: Nombre total de kilomètres parcourus à des fin personnelles | T115: =IF(T114=0,0,+T114-T116) -> 10500
A116: Nombre total de kilomètres parcourus à des fin d'affaires | T116: 13500
A117: Pourcentage d'utilisation pour fin d'affaires | T117: =IF(T114=0,0,ROUND(T116/T114,2)) -> 0.56
A118: Nombre de jours où l'automobile est utilisée par l'employé (jours disponible) - maximum 360 | T118: 360
A119: Coût de l'automobile incluant T.P.S. et T.V.Q. | T119: 0
A120: Nombre de mois d'utilisation de L'automobile | T120: 12
A121: Frais de location totaux incluant les taxes (pour toute la période pour laquelle l'automobile est détenue) excluant les frais d'assurances | T121: 15000
A122: Remboursement de l'employé - Droit d'usage | T122: 0
A123: Remboursement de l'employé - Frais de fonctionnement | T123: 0
A124: Êtes-vous une grande entreprise ? | T124: Non
A125: Paiement en début de contrat ?
A126: Durée en mois du contrat de location ?
A127: Nom de l'employeur : Voir Cellule A1
A128: Nom de l'employé : Voir Cellule A2

Sheet Gouvernement (hidden)
A1: CALCUL DE L'AVANTAGE - AUTOMOBILE | B1: Version 2020-01 (décembre 2020)
A2: Année d'imposition | B2: 2020
A3: % sur le coût de l'automobile | B3: 0.02
A4: Ratio pour la location | B4: 2 | C4: 3
A5: Kilomètres mensuels | B5: 1667
A6: Taux des frais de fonctionnement - kilomètres personnels | B6: 0.28 | E6: https://www.fin.gc.ca/n18/18-125-fra.asp
A7: TPS pour le droit d'usage | B7: 4 | C7: 104
A8: TVQ pour le droit d'usage | B8: 9.975 | C8: 109.975
A9: TPS sur les frais de fonctionnement | B9: 0.03 | D9: =B9*100 -> 3
A10: TVQ sur les frais de fonctionnement | B10: 0.06 | D10: =B10*100 -> 6
A11: Maximum de kilomètres personnels | B11: =ROUND(B5*12,0) -> 20004
A12: Nombre de jours mensuels | B12: 30
A13: Grande entreprise remise TVQ | B13: 0.75
A14: Code d'accès | B14: lc8822 | D14: mot de passe feuille : coco
A18: Revenu Québec - Calcul de la TPS et de la TVQ - Taxes - Entreprises | D18: Voir In-203 vers la page 79
A20: http://www.revenuquebec.ca/fr/sepf/publications/in/in-253.aspx
A22: http://www.cra-arc.gc.ca/F/pub/tg/t4130/
